Workbook

Sheet Calculator
C2: Zinc Distribution Model
B4: My crop row width is | C4: 30 cm / 12 inch
A6: I want to compare dry blended product | B6: MAP 1.0%Zn blend | C6: with ZincStar | D6: ZincStar 10
A9: Rate that I want to apply product is | B9: 50 | C9: kgs per ha
A12: Product Granule Spacing along the row is | B12: =100/((B9*VLOOKUP(B6,DATA!$A7:$N23,12,FALSE))/VLOOKUP(C4,DATA!$A29:$C38,3)) -> 1.376199186 | C12: cm apart | D12: =100/((B9*VLOOKUP(D6,DATA!$A7:$N23,12,FALSE))/VLOOKUP(C4,DATA!$A29:$C38,3)) -> 1.109631602 | E12: cm apart
A14: Zinc granule spacing along the row is | B14: =100/((B9*VLOOKUP(B6,DATA!$A7:$N23,13,FALSE))/VLOOKUP(C4,DATA!$A29:$C38,3)) -> 68.67188573 | C14: cm apart | D14: =100/((B9*VLOOKUP(D6,DATA!$A7:$N23,13,FALSE))/VLOOKUP(C4,DATA!$A29:$C38,3)) -> 1.109631602 | E14: cm apart
A16: Number Zinc granules is | B16: =100/B14 -> 1.4562 | C16: per metre row | D16: =100/D14 -> 90.12 | E16: per metre row
A18: Or at the same P rate per HA my extra Nutrient Value is | D18: =#REF! -> 
B20: Nutrients applied kg / ha
B21: N | C21: P | D21: S | E21: Zn
A22: =B6 -> MAP 1.0%Zn blend | B22: =(VLOOKUP(B6,DATA!O7:T23,3,FALSE))/100*B9 -> 4.85 | C22: =(VLOOKUP(B6,DATA!O7:T23,4,FALSE))/100*B9 -> 10.65 | D22: =(VLOOKUP(B6,DATA!O7:T23,5,FALSE))/100*3 -> 0.06 | E22: =VLOOKUP(B6,DATA!O7:T23,6,FALSE)/100*B9 -> 0.5
A23: =D6 -> ZincStar 10 | B23: =VLOOKUP(D6,DATA!O7:T23,3,FALSE)/100*B9 -> 5.35 | C23: =VLOOKUP(D6,DATA!O7:T23,4,FALSE)/100*B9 -> 11.15 | D23: =VLOOKUP(D6,DATA!O7:T23,5,FALSE)/100*B9 -> 1 | E23: =VLOOKUP(D6,DATA!O7:T23,6,FALSE)/100*B9 -> 0.5
B43: Blend | C43: Coat
B44: Lists | C44: Lists
B45: MAP 0.5%Zn blend | C45: ZincStar 10
B46: MAP 1.0%Zn blend | C46: ZincStar 5 Blend
B47: MAP 1.5%Zn blend | C47: ZincStar 15 Blend
B48: MAP 2.0%Zn blend | C48: ZincStar 20 Blend
B49: MAP 2.5%Zn blend | C49: ZincStar 25 Blend
B50: MAP 5.0%Zn blend | C50: ZincStar 50 Blend
B57: List row spacings
B58: 17.5 cm / 7 inch
B59: 22.5 cm / 9 inch
B60: 27.5 cm / 11 inch
B61: 30 cm / 12 inch
B62: 35 cm / 14 inch
B63: 40 cm / 16 inch
B64: 45 cm / 18 inch
B65: 50 cm / 20 inch
B66: 55 cm / 22 inch
B67: 60 cm / 24 inch

Sheet DATA (hidden)
A5: Granule Distribution | B5: Blend Components | G5: Granules per kg | L5: Total Gran | M5: Zinc | N5: Zinc Granule | Q5: Analysis %
B6: Granulock | C6: Urea | D6: MAP | E6: Zinc10 | F6: Zinc Mono | G6: Granulock | H6: Urea | I6: MAP | J6: ZincStar | K6: Zinc Mono | L6: per kg | M6: Granules | N6: Fractions | Q6: N | R6: P | S6: S | T6: Zn
A7: MAP 0.5%Zn blend | D7: 985 | F7: 15 | G7: =(B7/1000*$B$26) -> 0 | H7: =(C7/1000*$C$26) -> 0 | I7: =(D7/1000*$D$26) -> 48205.9 | J7: =(E7/1000*$E$26) -> 0 | K7: =(F7/1000*$F$26) -> 485.4 | L7: =SUM(G7:K7) -> 48691.3 | M7: =J7+K7 -> 485.4 | N7: =M7/L7 -> 0.009968926687 | O7: =A7 -> MAP 0.5%Zn blend | Q7: 9.9 | R7: 21.7 | S7: 1.7 | T7: 0.5
A8: MAP 1.0%Zn blend | D8: 970 | F8: 30 | G8: =(B8/1000*$B$26) -> 0 | H8: =(C8/1000*$C$26) -> 0 | I8: 47471.8 | J8: =(E8/1000*$E$26) -> 0 | K8: 970.8 | L8: =SUM(G8:K8) -> 48442.6 | M8: 970.8 | N8: =M8/L8 -> 0.02004021254 | O8: MAP 1.0%Zn blend | Q8: 9.7 | R8: 21.3 | S8: 2 | T8: 1
A9: MAP 1.5%Zn blend | D9: 965 | F9: 45 | G9: =(B9/1000*$B$26) -> 0 | H9: =(C9/1000*$C$26) -> 0 | I9: 47227.1 | J9: =(E9/1000*$E$26) -> 0 | K9: 1456.2 | L9: 48683.3 | M9: 1456.2 | N9: 0.02991169456 | O9: MAP 1.5%Zn blend | Q9: 9.6 | R9: 21 | S9: 2.2 | T9: 1.5
A10: MAP 2.0%Zn blend | D10: 940 | F10: 60 | G10: =(B10/1000*$B$26) -> 0 | H10: =(C10/1000*$C$26) -> 0 | I10: 46003.6 | J10: =(E10/1000*$E$26) -> 0 | K10: 1941.6 | L10: 47945.2 | M10: 1941.6 | N10: 0.0404962332 | O10: MAP 2.0%Zn blend | Q10: 9.4 | R10: 20.7 | S10: 2.4 | T10: 2
A11: MAP 2.5%Zn blend | D11: 928 | F11: 72 | G11: =(B11/1000*$B$26) -> 0 | H11: =(C11/1000*$C$26) -> 0 | I11: 45416.32 | J11: =(E11/1000*$E$26) -> 0 | K11: 2329.92 | L11: 47746.24 | M11: 2329.92 | N11: 0.04879797865 | O11: MAP 2.5%Zn blend | Q11: 9 | R11: 20.4 | S11: 2.6 | T11: 2.5
A12: MAP 5.0%Zn blend | D12: 855 | F12: 145 | I12: 41843.7 | K12: 4692.2 | L12: 46535.9 | M12: 4692.2 | N12: 0.100829682 | O12: MAP 5.0%Zn blend | Q12: 8.6 | R12: 18.8 | S12: 3.8 | T12: 5
A13: ZincStar 10 | E13: 1000 | G13: =(B13/1000*$B$26) -> 0 | H13: =(C13/1000*$C$26) -> 0 | I13: 0 | J13: =(E13/1000*$E$26) -> 60080 | K13: 0 | L13: 60080 | M13: 60080 | N13: 1 | O13: =A13 -> ZincStar 10 | Q13: 10.7 | R13: 22.3 | S13: 2 | T13: 1
A14: ZincStar 5 Blend | D14: 500 | E14: 500 | G14: 0 | H14: 0 | I14: 24470 | J14: 30040 | K14: 0 | L14: 54510 | M14: 30040 | N14: 0.5510915428 | O14: ZincStar 5 Blend | Q14: 10.4 | R14: 21.8 | S14: 1.8 | T14: 0.5
A15: ZincStar 15 Blend | E15: 985 | F15: 15 | G15: 0 | H15: 0 | I15: 0 | J15: 59178.8 | K15: 485.4 | L15: 59664.2 | M15: 59664.2 | N15: 1 | O15: ZincStar 15 Blend | Q15: 10.5 | R15: 21.2 | S15: 2 | T15: 1.5
A16: ZincStar 20 Blend | E16: 970 | F16: 30 | G16: 0 | H16: 0 | I16: 0 | J16: 58277.6 | K16: 970.8 | L16: 59248.4 | M16: 59248.4 | N16: 1 | O16: ZincStar 20 Blend | Q16: 10.4 | R16: 20.9 | S16: 3 | T16: 2
A17: ZincStar 25 Blend | E17: 955 | F17: 45 | G17: 0 | H17: 0 | I17: 0 | J17: 57376.4 | K17: 1456.2 | L17: 58832.6 | M17: 58832.6 | N17: 1 | O17: ZincStar 25 Blend | Q17: 10.2 | R17: 20.6 | S17: 3.5 | T17: 2.5
A18: ZincStar 50 Blend | E18: 882 | F18: 118 | G18: 0 | H18: 0 | I18: 0 | J18: 52990.56 | K18: 3818.48 | L18: 56809.04 | M18: 56809.04 | N18: 1 | O18: ZincStar 50 Blend | Q18: 9.4 | R18: 19 | S18: 4 | T18: 5
G19: 0 | H19: 0 | I19: 0 | J19: 0 | K19: 0 | L19: 0 | M19: 0 | O19: 0
G20: 0 | H20: 0 | I20: 0 | J20: 0 | K20: 0 | L20: 0 | M20: 0 | O20: 0
G21: 0 | H21: 0 | I21: 0 | J21: 0 | K21: 0 | L21: 0 | M21: 0 | O21: 0
G22: 0 | H22: 0 | I22: 0 | J22: 0 | K22: 0 | L22: 0 | M22: 0 | O22: 0
G23: 0 | H23: 0 | I23: 0 | J23: 0 | K23: 0 | L23: 0 | M23: 0 | O23: 0
A25: Granule Numbers per kg | D25: MAP | E25: ZincStar | F25: Zinc Mono | L25: S | M25: Zn
D26: 48940 | E26: 60080 | F26: 32360 | K26: 10 | L26: =($S$17/100)*$K26 -> 0.35 | M26: =($T$17/100)*$K26 -> 0.25
K27: 20 | L27: 0.7 | M27: 0.5
A28: Row Spacing | B28: Linear Metres Row | K28: 30 | L28: 1.05 | M28: 0.75
A29: 17.5 cm / 7 inch | B29: 17.5 | C29: =(10000/B29)*100 -> 57142.85714 | K29: 40 | L29: 1.4 | M29: 1
A30: 22.5 cm / 9 inch | B30: 22.5 | C30: 44444.44444 | K30: 50 | L30: 1.75 | M30: 1.25
A31: 27.5 cm / 11 inch | B31: 27.5 | C31: 36363.63636 | K31: 60 | L31: 2.1 | M31: 1.5
A32: 30 cm / 12 inch | B32: 30 | C32: 33333.33333 | K32: 70 | L32: 2.45 | M32: 1.75
A33: 35 cm / 14 inch | B33: 35 | C33: 28571.42857 | K33: 80 | L33: 2.8 | M33: 2
A34: 40 cm / 16 inch | B34: 40 | C34: 25000 | K34: 90 | L34: 3.15 | M34: 2.25
A35: 45 cm / 18 inch | B35: 45 | C35: 22222.22222 | K35: 100 | L35: 3.5 | M35: 2.5
A36: 50 cm / 20 inch | B36: 50 | C36: 20000 | K36: 110 | L36: 3.85 | M36: 2.75
A37: 55 cm / 22 inch | B37: 55 | C37: 18181.81818 | K37: 120 | L37: 4.2 | M37: 3
A38: 60 cm / 24 inch | B38: 60 | C38: 16666.66667 | K38: 130 | L38: 4.55 | M38: 3.25
K39: 140 | L39: 4.9 | M39: 3.5
K40: 150 | L40: 5.25 | M40: 3.75
K41: 160 | L41: 5.6 | M41: 4
K42: 170 | L42: 5.95 | M42: 4.25
K43: 180 | L43: 6.3 | M43: 4.5
K44: 190 | L44: 6.65 | M44: 4.75
K45: 200 | L45: 7 | M45: 5
